[Event "AUT-ch U18-Open 2025"]
[Site "Fuerstenfeld"]
[Date "2025.04.13"]
[Round "2.7"]
[White "Hengl, Philip"]
[Black "Zaytsev, Alexander"]
[Result "1/2-1/2"]
[Annotator "ChessBase"]
[ECO "B50"]
[WhiteElo "2205"]
[BlackElo "2178"]
[PlyCount "84"]
[EventDate "2025.04.12"]
[EventType "swiss"]
[EventCountry "AUT"]
[SourceTitle "playchess.com"]
[Source "ChessBase"]
[SourceQuality "1"]
[TimeControl "5400+30"]

1. e4 {[%emt 0:00:01]} c5 {[%emt 0:00:40]} 2. Nf3 {[%emt 0:00:13]} e6 {[%emt 0:00:10]} 3. b3 {[%emt 0:00:05]} Nc6 {[%emt 0:05:43]} 4. Bb2 {[%emt 0:00:11]} d6 {[%emt 0:02:55]} 5. Nc3 {[%emt 0:02:08]} Nf6 {[%emt 0:04:38]} 6. d4 {[%emt 0:00:34]} cxd4 {[%emt 0:02:57]} 7. Nxd4 {[%emt 0:00:07]} e5 {[%emt 0:04:28]} 8. Nxc6 {[%emt 0:04:03]} bxc6 {[%emt 0:00:05]} 9. Bc4 {[%emt 0:03:41]} Be6 {[%emt 0:03:23]} 10. Bxe6 {[%emt 0:01:21]} fxe6 {[%emt 0:00:01]} 11. Qe2 {[%emt 0:01:45]} Be7 {[%emt 0:09:51]} 12. O-O-O {[%emt 0:00:49]} O-O {[%emt 0:01:49]} 13. Kb1 {[%emt 0:02:28]} a5 {[%emt 0:09:42]} 14. Na4 {[%emt 0:08:10]} Qc7 {[%emt 0:05:16]} 15. g4 {[%emt 0:13:42]} Rae8 {[%emt 0:04:29]} 16. Rd2 {[%emt 0:16:30]} Nd7 {[%emt 0:08:28]} 17. c4 {[%emt 0:04:38]} Rf4 {[%emt 0:05:37]} 18. Rd3 {[%emt 0:07:31]} Qa7 {[%emt 0:12:39]} 19. f3 {[%emt 0:03:13]} Nc5 {[%emt 0:01:31]} 20. Nxc5 {[%emt 0:04:54]} Qxc5 {[%emt 0:00:02]} 21. Bc1 {[%emt 0:01:36]} Rf7 {[%emt 0:00:05]} 22. a4 {[%emt 0:01:19]} Bf8 {[%emt 0:05:57]} 23. Rhd1 {[%emt 0:01:05]} Rb7 {[%emt 0:05:52]} 24. Ka2 {[%emt 0:00:41]} Reb8 {[%emt 0:01:17]} 25. Ba3 {[%emt 0:03:53]} Qb6 {[%emt 0:00:38]} 26. Qe3 {[%emt 0:03:06]} Qxe3 {[%emt 0:01:43]} 27. Rxe3 {[%emt 0:00:01]} c5 {[%emt 0:00:14]} 28. Red3 {[%emt 0:01:07]} Rf7 {[%emt 0:00:48]} 29. Bb2 {[%emt 0:01:35]} Be7 {[%emt 0:00:53]} 30. Bc3 {[%emt 0:00:15]} Ra8 {[%emt 0:00:46]} 31. Kb2 {[%emt 0:01:08]} g5 {[%emt 0:00:50]} 32. Kc2 {[%emt 0:03:43]} Kg7 {[%emt 0:01:14]} 33. Kd2 {[%emt 0:00:31]} Kg6 {[%emt 0:00:26]} 34. Ke2 {[%emt 0:00:09]} h6 {[%emt 0:00:24]} 35. Kf2 {[%emt 0:00:44]} Rf4 {[%emt 0:01:32]} 36. Kg2 {[%emt 0:00:14]} Rf7 {[%emt 0:00:14]} 37. Rh1 {[%emt 0:00:47]} Rf4 {[%emt 0:01:03]} 38. Be1 {[%emt 0:00:10]} Rf7 {[%emt 0:00:23]} 39. h4 {[%emt 0:00:49]} Rff8 {[%emt 0:00:33]} 40. hxg5 {[%emt 0:00:22]} hxg5 {[%emt 0:00:08]} 41. Bd2 {[%emt 0:01:05]} Rf7 {[%emt 0:00:36]} 42. Rh3 {[%emt 0:00:14]} Rh7 {[%emt 0:00:43]} 1/2-1/2

[Event "AUT-ch U18-Open 2025"]
[Site "Fuerstenfeld"]
[Date "2025.04.13"]
[Round "2.8"]
[White "Jetzl, Julian"]
[Black "Brenner, Nico"]
[Result "1-0"]
[Annotator "ChessBase"]
[ECO "D02"]
[WhiteElo "2146"]
[BlackElo "1813"]
[PlyCount "43"]
[EventDate "2025.04.12"]
[EventType "swiss"]
[EventCountry "AUT"]
[SourceTitle "playchess.com"]
[Source "ChessBase"]
[SourceQuality "1"]
[TimeControl "5400+30"]

1. d4 {[%emt 0:00:04]} d5 {[%emt 0:00:04]} 2. Nf3 {[%emt 0:00:16]} Nf6 {[%emt 0:00:10]} 3. c3 {[%emt 0:00:32]} c5 {[%emt 0:00:31]} 4. dxc5 {[%emt 0:01:06]} e6 {[%emt 0:00:07]} 5. b4 {[%emt 0:00:24]} a5 {[%emt 0:00:31]} 6. e3 {[%emt 0:01:00]} Nc6 {[%emt 0:00:40]} 7. b5 {[%emt 0:01:24]} Na7 {[%emt 0:00:16]} 8. Bd3 {[%emt 0:15:00]} Bxc5 {[%emt 0:00:42]} 9. O-O {[%emt 0:01:00]} Bd7 {[%emt 0:00:05]} 10. a4 {[%emt 0:03:46]} O-O {[%emt 0:00:33]} 11. Bb2 {[%emt 0:02:42]} Nc8 {[%emt 0:00:52]} 12. Nbd2 {[%emt 0:04:24]} Re8 {[%emt 0:03:08]} 13. c4 {[%emt 0:02:32]} Nb6 {[%emt 0:02:17]} 14. Bxf6 {[%emt 0:16:36]} Qxf6 {[%emt 0:00:03]} 15. cxd5 {[%emt 0:00:31]} Nxd5 {[%emt 0:00:24]} 16. Bxh7+ {[%emt 0:01:25]} Kf8 {[%emt 0:03:06]} 17. Ne4 {[%emt 0:02:22]} Qe7 {[%emt 0:00:53]} 18. Nxc5 {[%emt 0:03:13]} Qxc5 {[%emt 0:00:04]} 19. Ne5 {[%emt 0:00:51]} Rad8 {[%emt 1:25:34]} 20. Qh5 {[%emt 0:00:40]} Re7 {[%emt 0:00:00]} 21. Bg6 {[%emt 0:00:48]} Nf6 {[%emt 0:00:00]} 22. Nxd7+ {[%emt 0:00:51]} 1-0